bitfinex/quotes_SOLUSD_20250305
["timestamp","ask_amount","ask_price","bid_price","bid_amount"]
[1741147211492,0.03,142.39,142.32,0.14216157]
[1741147211689,0.03,142.39,142.37,53.86295365]
[1741147211983,0.03,142.39,142.32,7.0264]
[1741147212171,60.58295365,142.38,142.28,6.1807]
[1741147212489,53.86295365,142.36,142.29,53.86295365]
[1741147212863,6.72,142.38,142.34,53.86295365]
[1741147213062,53.86295365,142.37,142.27,7.0287]
[1741147213277,53.86295365,142.37,142.28,7.0282]
[1741147213471,29.39883646,142.37,142.29,10.779859]
[1741147213682,60.58295365,142.38,142.31,53.86295365]
[1741147213888,6.72,142.38,142.32,53.86295365]
[1741147214078,6.72,142.38,142.34,53.86295365]
[1741147214390,53.86295365,142.37,142.31,53.86295365]
[1741147214687,6.72,142.38,142.35,53.86295365]
[1741147214896,0.03,142.39,142.36,53.86295365]
[1741147215080,0.03,142.39,142.37,53.86295365]
[1741147215286,0.03,142.39,142.31,53.86295365]
[1741147215462,53.89295365,142.39,142.33,53.86295365]
[1741147215663,53.86295365,142.38,142.32,53.86295365]
[1741147216164,53.89295365,142.39,142.33,53.86295365]
[1741147216386,53.86295365,142.38,142.32,53.86295365]
[1741147216889,53.86295365,142.37,142.29,81.6]
[1741147217199,53.86295365,142.33,142.26,81.6]
[1741147217493,53.86295365,142.33,142.26,53.86295365]
[1741147217898,6.72,142.34,142.27,53.86295365]
[1741147218094,53.86295365,142.32,142.26,53.86295365]
[1741147218688,53.86295365,142.33,142.26,53.86295365]
[1741147218870,6.72,142.34,142.28,53.86295365]
[1741147219691,53.86295365,142.31,142.22,7.031]
[1741147219995,53.86295365,142.32,142.25,53.86295365]
[1741147220192,53.86295365,142.29,142.23,53.86295365]
[1741147220565,53.86295365,142.3,142.23,53.86295365]
[1741147220763,56.2114797,142.32,142.26,56.2114797]
[1741147220980,6.72,142.34,142.27,56.2114797]
[1741147221178,62.9314797,142.34,142.28,56.2114797]
[1741147221398,56.2114797,142.33,142.21,1.75999441]
[1741147221697,62.9314797,142.34,142.28,56.2114797]
[1741147221993,62.9314797,142.34,142.27,56.2114797]
[1741147222295,63.2373797,142.33,142.27,56.2114797]
[1741147222494,13.7455,142.34,142.27,56.2114797]
[1741147222666,6.72,142.34,142.28,56.2114797]
[1741147222872,6.72,142.34,142.3,56.2114797]
[1741147223587,6.72,142.34,142.29,56.2114797]
[1741147223895,56.2114797,142.32,142.27,81.6]
[1741147224073,56.2114797,142.3,142.23,56.2114797]
[1741147224283,63.2388797,142.3,142.23,56.2114797]
[1741147224671,88.8259,142.33,142.25,56.2114797]
[1741147224882,56.2114797,142.32,142.26,56.2114797]
[1741147225168,56.2114797,142.32,142.19,107.69032083]
[1741147225169,56.2114797,142.31,142.25,56.2114797]
[1741147225372,56.2114797,142.31,142.19,88.6328]
[1741147225684,56.2114797,142.33,142.26,56.2114797]
[1741147225899,69.9569797,142.34,142.27,56.2114797]
[1741147226063,62.9314797,142.34,142.28,56.2114797]
[1741147226270,186.441483,142.38,142.31,56.2114797]
[1741147226604,187.36108231,142.38,142.31,56.2114797]
[1741147226771,187.36108231,142.38,142.26,0.28432314]
[1741147227102,131.14960261,142.38,142.32,56.2114797]
[1741147227470,131.14960261,142.38,142.33,56.2114797]
[1741147227893,131.14960261,142.38,142.35,56.2114797]
[1741147228097,131.14960261,142.38,142.37,56.2114797]
[1741147228309,131.14960261,142.38,142.37,63.2353797]
[1741147228675,131.14960261,142.38,142.37,144.8353797]
[1741147229399,131.14960261,142.38,142.37,145.11970284]
[1741147229708,0.03,142.39,142.37,203.33118254]
[1741147229892,10.47205263,142.46,142.42,0.28432314]
[1741147230092,10.47205263,142.46,142.45,56.2114797]
[1741147230301,10.47205263,142.46,142.45,145.11580284]
[1741147230473,21.44762195,142.47,142.46,0.28432314]
[1741147230808,6.55426124,142.48,142.47,0.28432314]
[1741147231106,0.03,142.53,142.5,20.28432314]
[1741147231306,0.03,142.53,142.52,56.49580284]
[1741147231611,0.03,142.63,142.61,56.2114797]
[1741147232103,0.03,142.63,142.62,56.2114797]
[1741147232915,0.03,142.63,142.62,137.8114797]
[1741147233589,0.03,142.63,142.62,138.09580284]
[1741147233897,56.2114797,142.76,142.64,0.28432314]
[1741147234211,69.8157797,142.77,142.71,56.2114797]
[1741147234385,6.6,142.77,142.71,56.2114797]
[1741147234589,69.8157797,142.77,142.71,56.2114797]
[1741147234823,69.8157797,142.77,142.7,56.2114797]
[1741147235006,0.03,142.78,142.73,56.2114797]
[1741147235296,0.03,142.78,142.77,56.2114797]
[1741147235594,0.03,142.78,142.76,56.2114797]
[1741147235907,63.2453797,142.78,142.69,81.6]
[1741147236113,56.2114797,142.77,142.7,56.2114797]
[1741147236485,56.2114797,142.72,142.65,137.8114797]
[1741147236684,13.6047,142.76,142.65,81.6]
[1741147236685,56.2114797,142.71,142.65,81.6]
[1741147237214,56.2114797,142.68,142.6,81.6]
[1741147237515,31.1166,142.76,142.53,81.6]
[1741147237516,66.18432314,142.67,142.53,81.6]
[1741147237816,0.28432314,142.65,142.48,88.6181]
[1741147238007,20.0,142.61,142.48,81.6]
[1741147238312,85.9,142.61,142.45,88.6197]
[1741147238610,63.2240797,142.6,142.53,56.2114797]
[1741147238811,56.2114797,142.58,142.52,56.2114797]
[1741147239013,56.2114797,142.56,142.49,56.2114797]
[1741147239217,56.2114797,142.53,142.46,56.2114797]
[1741147239415,56.2114797,142.51,142.41,7.0215]
[1741147239720,56.2114797,142.49,142.43,56.2114797]
[1741147239895,56.2114797,142.51,142.44,56.2114797]
[1741147240081,6.62,142.55,142.47,56.2114797]
[1741147240281,6.62,142.56,142.49,56.2114797]
[1741147240514,6.62,142.56,142.52,56.2114797]
[1741147240820,6.62,142.56,142.48,56.2114797]
[1741147240999,6.62,142.56,142.51,56.2114797]
[1741147241213,65.9,142.55,142.37,7.0239]
[1741147241520,56.2114797,142.47,142.4,56.2114797]
[1741147241692,56.2114797,142.49,142.42,56.2114797]
[1741147241892,56.2114797,142.51,142.44,56.2114797]
[1741147242213,56.2114797,142.48,142.41,56.2114797]
[1741147242511,56.2114797,142.48,142.42,56.2114797]
[1741147242685,6.62,142.56,142.47,56.2114797]
[1741147242886,56.2114797,142.55,142.49,56.2114797]
[1741147243081,62.8314797,142.56,142.5,56.2114797]
[1741147243308,56.2114797,142.54,142.43,0.28432314]
[1741147243609,6.62,142.56,142.43,83.35792226]
[1741147243813,6.62,142.56,142.52,56.2114797]
[1741147244016,6.62,142.56,142.5,56.2114797]
[1741147244323,56.2114797,142.55,142.48,56.2114797]
[1741147244616,6.62,142.56,142.43,81.6]
[1741147244617,62.8314797,142.56,142.5,56.2114797]
[1741147244822,6.62,142.56,142.5,56.2114797]
[1741147245199,65.9,142.63,142.51,56.2114797]
[1741147245392,56.2114797,142.62,142.55,56.2114797]
[1741147245598,56.2114797,142.62,142.56,56.2114797]
[1741147245921,57.8371797,142.65,142.58,56.2114797]
[1741147246094,6.64,142.68,142.6,56.2114797]
[1741147246295,62.56806107,142.68,142.62,55.92806107]
[1741147246503,6.64,142.68,142.62,55.92806107]
[1741147246707,62.56806107,142.68,142.59,7.0128]
[1741147246887,62.56806107,142.68,142.62,55.92806107]
[1741147247325,62.56806107,142.68,142.59,7.0128]
[1741147247617,55.92806107,142.63,142.58,81.6]
[1741147247912,55.92806107,142.6,142.53,62.94366107]
[1741147248114,55.92806107,142.59,142.53,137.52806107]
[1741147248300,55.92806107,142.58,142.53,81.6]
[1741147248488,81.8,142.66,142.53,81.6]
[1741147248689,63.01323878,142.64,142.53,137.60223878]
[1741147248890,56.00223878,142.59,142.53,81.6]
[1741147249115,56.00223878,142.59,142.53,137.60223878]
[1741147249418,56.00223878,142.58,142.53,81.6]
[1741147249588,56.00223878,142.6,142.53,144.61813878]
[1741147249785,56.00223878,142.59,142.53,81.6]
[1741147249991,56.00223878,142.56,142.53,81.6]
[1741147250305,56.00223878,142.58,142.53,81.6]
[1741147250500,6.62,142.58,142.53,81.6]
[1741147251007,56.00223878,142.57,142.53,81.633]
[1741147251219,56.00223878,142.54,142.53,0.033]
[1741147252212,56.00223878,142.54,142.46,81.6]
[1741147252406,56.00223878,142.49,142.42,56.00223878]
[1741147252602,81.8,142.55,142.42,81.6]
[1741147252603,56.00223878,142.47,142.42,81.6]
[1741147253305,56.00223878,142.46,142.42,81.6]
[1741147253631,56.00223878,142.47,142.4,144.62453878]
[1741147253826,56.00223878,142.46,142.4,81.6]
[1741147254199,6.6,142.49,142.42,56.00223878]
[1741147254403,6.6,142.49,142.43,56.00223878]
[1741147254630,56.00223878,142.52,142.45,56.00223878]
[1741147254809,62.60223878,142.53,142.47,56.00223878]
[1741147255138,62.60223878,142.53,142.45,81.6]
[1741147255335,62.60223878,142.53,142.46,56.00223878]
[1741147255505,62.60223878,142.53,142.47,56.00223878]
[1741147255706,62.60223878,142.53,142.46,56.00223878]
[1741147256235,6.6,142.53,142.46,56.00223878]
[1741147256415,56.00223878,142.51,142.45,81.6]
[1741147256624,56.00223878,142.5,142.45,81.6]
[1741147256929,56.00223878,142.49,142.45,81.6]
[1741147257626,56.00223878,142.5,142.43,144.62313878]
[1741147258110,56.00223878,142.49,142.43,81.6]
[1741147258439,56.00223878,142.49,142.43,137.60223878]
[1741147258611,56.00223878,142.49,142.43,144.62303878]
[1741147258940,81.8,142.54,142.44,56.00223878]
[1741147259127,63.01823878,142.53,142.46,56.00223878]
[1741147259331,56.00223878,142.48,142.44,81.6]
[1741147259626,56.00223878,142.48,142.42,7.0214]
[1741147259934,56.00223878,142.46,142.38,81.633]
[1741147260127,7.02,142.45,142.38,81.633]
[1741147260327,56.00223878,142.44,142.38,0.033]
[1741147260516,56.00223878,142.41,142.38,0.033]
[1741147260841,56.00223878,142.4,142.38,0.033]
[1741147261203,56.00223878,142.43,142.38,0.033]
[1741147261404,20.0,142.41,142.38,0.033]
[1741147261639,85.9,142.41,142.38,0.033]
[1741147261818,0.14216157,142.4,142.29,81.633]
[1741147262019,7.0204,142.44,142.32,20.0]
[1741147262210,13.5934,142.45,142.33,0.14216157]
[1741147262413,56.00223878,142.38,142.32,81.6]
[1741147262738,0.28432314,142.39,142.29,0.033]
[1741147262938,56.00223878,142.32,142.29,0.033]
[1741147263240,65.9,142.37,142.29,0.033]
[1741147263402,6.62,142.4,142.29,0.033]
[1741147263606,56.00223878,142.38,142.32,56.00223878]
[1741147263840,13.5934,142.45,142.35,56.00223878]
[1741147264141,7.023,142.39,142.29,0.033]
[1741147264314,56.00223878,142.31,142.29,0.033]
[1741147264726,56.00223878,142.32,142.29,0.033]
[1741147264931,56.00223878,142.33,142.29,0.033]
[1741147265247,56.00223878,142.39,142.32,56.00223878]
[1741147265424,56.00223878,142.38,142.32,137.60223878]
[1741147265744,56.00223878,142.36,142.32,81.6]
[1741147265919,0.14216157,142.38,142.29,0.033]
[1741147266239,56.00223878,142.35,142.29,0.033]
[1741147266437,81.8,142.38,142.3,56.00223878]
[1741147266639,81.8,142.4,142.34,56.00223878]
[1741147266816,56.00223878,142.39,142.32,56.00223878]
[1741147267022,56.00223878,142.38,142.31,56.00223878]
[1741147267213,7.0221,142.41,142.3,137.60223878]
[1741147267214,56.00223878,142.36,142.3,137.60223878]
[1741147267408,56.00223878,142.38,142.31,56.00223878]
[1741147267717,56.00223878,142.4,142.31,81.6]
[1741147267906,6.62,142.42,142.34,56.00223878]
[1741147268110,56.00223878,142.4,142.33,56.00223878]
[1741147268312,56.00223878,142.43,142.36,56.00223878]
[1741147268613,6.64,142.45,142.39,56.00223878]
[1741147268810,6.64,142.45,142.41,56.00223878]
[1741147269009,8.2903,142.52,142.44,56.00223878]
[1741147269230,56.00223878,142.51,142.45,56.00223878]
[1741147269544,56.00223878,142.48,142.42,56.00223878]
[1741147269720,56.00223878,142.47,142.41,81.6]
[1741147270045,56.00223878,142.42,142.35,81.6]
[1741147270246,13.6816,142.42,142.3,7.0274]
[1741147270426,6.66,142.41,142.3,90.10261614]
[1741147270615,6.66,142.41,142.37,56.00223878]
[1741147270813,20.0,142.48,142.37,56.00223878]
[1741147270814,7.0175,142.5,142.37,81.6]
[1741147271019,56.00223878,142.44,142.37,137.60223878]
[1741147271219,56.00223878,142.42,142.35,56.00223878]
[1741147271543,13.6771,142.51,142.36,1.75898769]
[1741147271840,0.28432314,142.5,142.36,81.6]
[1741147272022,13.6771,142.51,142.36,81.6]
[1741147272224,13.6771,142.51,142.37,8.49813258]
[1741147272438,56.00223878,142.48,142.38,0.28432314]
[1741147272644,56.00223878,142.46,142.4,56.00223878]
[1741147272818,56.00223878,142.44,142.38,81.6]
[1741147273017,56.00223878,142.42,142.36,56.00223878]
[1741147273252,56.00223878,142.4,142.34,56.00223878]
[1741147273416,56.00223878,142.41,142.34,137.60223878]
[1741147273614,56.00223878,142.39,142.34,81.6]
[1741147273816,56.00223878,142.39,142.33,56.00223878]
[1741147274320,56.00223878,142.39,142.33,81.6]
[1741147274534,56.00223878,142.38,142.33,81.6]
[1741147274742,65.9,142.43,142.33,81.6]
[1741147275048,56.00223878,142.41,142.35,56.00223878]
[1741147275847,79.11162829,142.48,142.36,56.00223878]
[1741147275848,56.00223878,142.42,142.36,56.00223878]
[1741147276051,56.00223878,142.42,142.29,81.633]
[1741147276052,56.00223878,142.37,142.29,81.633]
[1741147276230,56.00223878,142.35,142.29,81.633]
[1741147276546,56.00223878,142.32,142.29,0.033]
[1741147276952,56.00223878,142.34,142.29,0.033]
[1741147277130,56.00223878,142.35,142.29,56.03523878]
[1741147277335,56.00223878,142.37,142.3,56.00223878]
[1741147277533,56.00223878,142.39,142.32,56.00223878]
[1741147277850,56.00223878,142.38,142.32,56.00223878]
[1741147278145,56.00223878,142.35,142.3,81.6]
[1741147278325,56.00223878,142.33,142.3,81.6]
[1741147278525,56.00223878,142.33,142.29,0.033]
[1741147278818,56.20723431,142.31,142.29,0.033]
[1741147279036,56.20723431,142.3,142.23,76.666]
[1741147279253,56.20723431,142.28,142.22,63.27143431]
[1741147279629,56.20723431,142.29,142.22,63.27143431]
[1741147280539,6.66,142.3,142.25,56.20723431]
[1741147280869,152.1,142.33,142.22,7.0642]
[1741147281155,56.20723431,142.29,142.22,63.27143431]
[1741147281530,56.20723431,142.28,142.22,0.033]
[1741147281731,56.20723431,142.28,142.22,63.27133431]
[1741147282043,56.20723431,142.27,142.22,0.033]
[1741147282248,56.20723431,142.28,142.22,0.033]
[1741147282437,56.20723431,142.3,142.24,56.20723431]
[1741147282636,56.20723431,142.32,142.25,56.20723431]
[1741147282851,81.8,142.36,142.27,56.20723431]
[1741147283150,56.20723431,142.34,142.27,56.20723431]
[1741147283544,70.3,142.37,142.27,56.20723431]
[1741147283863,56.20723431,142.35,142.29,56.20723431]
[1741147284153,6.64,142.38,142.29,76.666]
[1741147284154,138.00723431,142.37,142.29,76.666]
[1741147284353,56.20723431,142.37,142.3,56.20723431]
[1741147284660,56.16950408,142.37,142.3,132.83550408]
[1741147285168,6.64,142.38,142.32,56.16950408]
[1741147285169,0.03,142.38,142.32,56.16950408]
[1741147285332,0.03,142.38,142.3,76.666]
[1741147285526,0.03,142.38,142.3,388.666]
[1741147285933,0.03,142.38,142.35,56.16950408]
[1741147286136,0.03,142.38,142.36,56.16950408]
[1741147286331,0.03,142.38,142.37,63.19340408]
[1741147287862,152.1,142.54,142.4,20.0]
[1741147288050,56.16950408,142.51,142.44,56.16950408]
[1741147288256,56.16950408,142.5,142.44,63.18990408]
[1741147288439,56.16950408,142.5,142.44,56.16950408]
[1741147288660,56.16950408,142.47,142.41,63.19140408]
[1741147288862,56.16950408,142.47,142.41,139.85740408]
[1741147289173,56.16950408,142.47,142.41,132.83550408]
[1741147289373,152.1,142.52,142.41,132.83550408]
[1741147289561,56.16950408,142.47,142.41,132.83550408]
[1741147289764,81.8,142.51,142.42,56.16950408]
[1741147289957,56.16950408,142.48,142.42,132.83550408]
[1741147290179,70.3,142.52,142.42,76.666]
[1741147290180,56.16950408,142.46,142.42,76.666]
[1741147290388,56.16950408,142.44,142.38,76.666]
[1741147290573,56.16950408,142.4,142.32,83.6922]
[1741147290780,0.28432314,142.43,142.32,76.666]
[1741147290955,152.1,142.42,142.25,8.50516781]
[1741147291166,56.16950408,142.38,142.31,56.16950408]
[1741147291467,56.16950408,142.36,142.31,76.666]
[1741147292078,56.16950408,142.39,142.33,56.16950408]
[1741147292255,6.64,142.4,142.33,56.16950408]
[1741147292579,56.16950408,142.35,142.31,76.666]
[1741147292765,56.16950408,142.34,142.26,76.666]
[1741147293084,56.16950408,142.35,142.29,56.16950408]
[1741147293378,56.16950408,142.38,142.32,56.16950408]
[1741147293548,56.16950408,142.34,142.26,76.666]
[1741147293752,56.16950408,142.3,142.26,76.666]
[1741147293951,152.1,142.36,142.23,56.16950408]
[1741147293952,56.16950408,142.29,142.23,76.666]
[1741147294383,81.8,142.35,142.22,0.033]
[1741147294384,56.16950408,142.27,142.22,0.033]
[1741147294555,56.16950408,142.26,142.22,0.033]
[1741147294754,56.16950408,142.28,142.22,0.033]
[1741147294977,56.16950408,142.27,142.22,0.033]
[1741147295357,56.16950408,142.28,142.22,0.033]
[1741147295558,56.16950408,142.27,142.22,0.033]
[1741147295862,56.16950408,142.28,142.22,0.033]
[1741147296176,63.19800408,142.28,142.22,0.033]
[1741147296675,56.16950408,142.27,142.22,0.033]
[1741147297363,7.0285,142.28,142.22,56.20250408]
[1741147297682,63.19740408,142.29,142.23,56.16950408]
[1741147297865,7.0279,142.29,142.23,56.16950408]
[1741147298066,6.68,142.3,142.24,56.16950408]
[1741147298856,6.68,142.3,142.26,56.16950408]
[1741147299054,87.8891,142.38,142.29,56.16950408]
[1741147299055,7.024,142.37,142.29,56.16950408]
[1741147299257,7.0534,142.38,142.31,56.16950408]
[1741147299481,56.16950408,142.37,142.31,56.16950408]
[1741147299853,0.03,142.38,142.32,56.16950408]
[1741147300057,56.16950408,142.37,142.32,81.6]
[1741147300253,58.16950408,142.36,142.32,81.6]
[1741147300480,2.0,142.34,142.32,81.6]
[1741147300669,0.03,142.38,142.32,56.16950408]
[1741147300868,2.0,142.35,142.3,56.16950408]
[1741147301061,2.0,142.35,142.31,56.16950408]
[1741147301261,0.03,142.38,142.34,56.16950408]
[1741147301579,2.03,142.38,142.35,56.16950408]
[1741147301754,0.03,142.38,142.34,56.16950408]
[1741147301961,0.03,142.38,142.35,56.16950408]
[1741147302160,0.03,142.38,142.34,56.16950408]
[1741147302788,56.19950408,142.38,142.32,63.19590408]
[1741147303280,56.16950408,142.35,142.31,81.6]
[1741147303587,56.16950408,142.36,142.31,88.6267]
[1741147303880,56.19950408,142.38,142.32,56.16950408]
[1741147304064,0.03,142.38,142.32,137.76950408]
[1741147304268,56.16950408,142.37,142.32,81.6]
[1741147304485,56.16950408,142.37,142.32,88.6263]
[1741147304689,56.16950408,142.37,142.32,81.6]
[1741147304992,2.0,142.36,142.32,81.6]
[1741147305281,2.0,142.36,142.27,88.6284]
[1741147305484,56.16950408,142.33,142.27,144.79790408]
[1741147305688,83.30527203,142.38,142.27,144.79790408]
[1741147305689,56.16950408,142.32,142.27,88.6284]
[1741147305858,58.16950408,142.33,142.27,88.6284]
[1741147306060,83.30527203,142.38,142.28,56.45382722]
[1741147306061,56.16950408,142.34,142.28,56.45382722]
[1741147306284,2.0,142.36,142.3,56.16950408]
[1741147306669,2.0,142.36,142.31,56.16950408]
[1741147306992,2.0,142.36,142.31,137.76950408]
[1741147307585,2.0,142.36,142.31,81.6]
[1741147307757,58.16950408,142.36,142.31,81.6]
[1741147307965,56.16950408,142.33,142.31,81.6]
[1741147308293,2.0,142.35,142.28,56.16950408]
[1741147308294,56.16950408,142.34,142.28,56.16950408]
[1741147308502,56.16950408,142.33,142.27,63.19790408]
[1741147308986,56.16950408,142.34,142.27,63.19790408]
[1741147309189,2.0,142.36,142.3,56.16950408]
[1741147309603,6.65,142.38,142.33,56.16950408]
[1741147309901,0.03,142.38,142.35,56.16950408]
[1741147310101,0.03,142.38,142.36,56.16950408]
[1741147310389,0.03,142.38,142.37,64.9520555]
[1741147310563,0.03,142.38,142.37,8.78255142]
[1741147310763,0.03,142.38,142.37,64.66773236]
[1741147310975,0.03,142.38,142.37,376.66773236]
[1741147311177,0.03,142.38,142.37,375.19340408]
[1741147311378,0.03,142.38,142.37,319.0239]
[1741147311571,0.03,142.38,142.37,375.19340408]
[1741147312193,0.03,142.38,142.37,312.0]
[1741147312493,0.03,142.38,142.36,88.6242]
[1741147312791,0.03,142.38,142.36,81.6]
[1741147312971,0.03,142.38,142.36,88.6244]
[1741147313387,0.03,142.38,142.36,144.79390408]
[1741147313689,0.0001,142.38,142.37,57.92806427]
[1741147313890,56.16950408,142.48,142.4,20.0]
[1741147314197,2.0,142.46,142.4,101.6]
[1741147314486,56.16950408,142.45,142.4,108.6223]
[1741147314692,56.16950408,142.48,142.41,56.31166565]
[1741147314869,56.16950408,142.48,142.42,56.16950408]
[1741147315194,56.16950408,142.48,142.41,137.91166565]
[1741147315492,2.0,142.46,142.41,449.91166565]
[1741147315666,56.16950408,142.47,142.41,393.74216157]
[1741147315990,56.16950408,142.47,142.41,449.91166565]
[1741147316387,56.16950408,142.47,142.42,7.0214]
[1741147316787,56.16950408,142.48,142.42,7.0214]
[1741147316990,56.16950408,142.48,142.42,144.79090408]
[1741147317290,56.16950408,142.46,142.42,81.6]
[1741147318089,56.16950408,142.48,142.42,137.76950408]
[1741147318466,2.0,142.46,142.42,137.76950408]
[1741147318693,56.16950408,142.48,142.43,7.0209]
[1741147318899,56.16950408,142.49,142.43,144.79040408]
[1741147319293,62.76950408,142.5,142.44,56.16950408]
[1741147319600,62.76950408,142.5,142.44,56.31166565]
[1741147319914,56.16950408,142.48,142.43,88.6209]
[1741147320212,0.03,142.51,142.45,56.16950408]
[1741147320498,0.03,142.51,142.47,56.16950408]
[1741147320997,0.03,142.51,142.48,7.0185]
[1741147321188,0.03,142.51,142.48,144.78800408]
[1741147321385,0.03,142.51,142.48,88.6185]
[1741147321695,0.03,142.51,142.48,144.78800408]
[1741147321865,0.03,142.51,142.49,57.78459445]
[1741147322066,0.03,142.51,142.5,76.45382722]
[1741147322595,0.03,142.51,142.5,388.45382722]
[1741147322800,0.03,142.53,142.51,0.14216157]
[1741147322976,56.16950408,142.6,142.52,1.47262856]
[1741147323298,2.0,142.6,142.52,137.91166565]
[1741147323468,2.0,142.6,142.54,0.14216157]
[1741147323469,56.16950408,142.6,142.54,0.14216157]
[1741147323669,2.03,142.62,142.54,56.31166565]
[1741147323900,2.0,142.6,142.55,56.16950408]
[1741147324075,7.0416,142.62,142.55,137.76950408]
[1741147324390,2.0,142.6,142.55,81.6]
[1741147324567,56.16950408,142.58,142.55,81.6]
[1741147325083,58.16950408,142.57,142.55,81.6]
[1741147325290,2.0,142.55,142.51,81.6]
[1741147325599,58.16950408,142.52,142.45,56.16950408]
[1741147325802,2.0,142.49,142.45,81.6]
[1741147326177,2.0,142.51,142.45,81.6]
[1741147326510,2.0,142.52,142.45,81.6]
[1741147326690,2.0,142.5,142.45,81.6]
[1741147326882,58.16950408,142.47,142.45,81.6]
[1741147327081,56.16950408,142.46,142.42,81.6]
[1741147327279,2.0,142.47,142.42,81.6]
[1741147327280,58.16950408,142.45,142.42,81.6]
[1741147327484,7.0191,142.47,142.42,81.6]
[1741147327485,2.0,142.47,142.42,81.6]
[1741147327707,9.0185,142.49,142.42,81.6]
[1741147327915,56.16950408,142.47,142.42,81.6]
[1741147328600,56.16950408,142.44,142.38,63.19290408]
[1741147328801,56.16950408,142.44,142.38,88.6234]
[1741147329017,58.16950408,142.42,142.38,81.6]
[1741147329222,56.16950408,142.4,142.34,56.16950408]
[1741147329396,2.0,142.4,142.34,137.76950408]
[1741147329602,58.16950408,142.42,142.35,56.16950408]
[1741147329807,2.0,142.4,142.35,312.0]
[1741147330120,2.0,142.39,142.35,312.0]
[1741147330315,2.0,142.39,142.35,393.6]
[1741147330488,56.16950408,142.38,142.35,81.6]
[1741147330689,2.0,142.35,142.31,81.6]
[1741147330893,58.16950408,142.34,142.31,81.6]
[1741147331086,58.16950408,142.36,142.29,56.16950408]
[1741147331293,2.0,142.39,142.32,56.16950408]
[1741147331489,1.5681,142.43,142.33,1.75914458]
[1741147331490,2.0,142.41,142.33,1.75914458]
[1741147331717,2.0,142.39,142.32,81.6]
[1741147332017,2.0,142.36,142.32,81.6]
[1741147332225,2.0,142.42,142.33,0.28432314]
[1741147332516,2.0,142.41,142.37,56.16950408]
[1741147333014,2.0,142.42,142.37,76.16950408]
[1741147333187,2.0,142.41,142.36,7.024]
[1741147333511,56.16950408,142.4,142.36,312.0]
[1741147333702,56.16950408,142.38,142.34,88.6254]
[1741147333904,58.16950408,142.38,142.34,81.6]
[1741147334789,58.16950408,142.37,142.34,81.6]
[1741147335115,2.0,142.4,142.35,56.16950408]
[1741147335288,56.16950408,142.42,142.36,56.16950408]
[1741147335496,66.35760408,142.43,142.36,56.16950408]
[1741147335683,1.5681,142.43,142.38,56.16950408]
[1741147335887,64.78950408,142.45,142.39,56.16950408]
[1741147336091,8.62,142.45,142.39,137.76950408]
[1741147336311,6.62,142.45,142.4,56.16950408]
[1741147336491,6.62,142.45,142.42,56.16950408]
[1741147336816,59.79240408,142.48,142.42,56.16950408]
[1741147337016,3.6229,142.48,142.42,137.76950408]
[1741147337316,3.6229,142.48,142.42,88.6214]
[1741147337317,2.0,142.46,142.42,88.6214]
[1741147337688,58.16950408,142.46,142.42,88.6214]
[1741147338102,2.0,142.45,142.4,63.19150408]
[1741147338307,2.0,142.45,142.4,7.022]
[1741147338490,2.0,142.44,142.4,7.022]
[1741147338690,1.6229,142.48,142.42,56.16950408]
[1741147338890,62.59070408,142.5,142.43,56.16950408]
[1741147339191,56.16950408,142.49,142.43,63.19000408]
[1741147339387,64.59070408,142.5,142.43,63.19000408]
[1741147339723,6.4212,142.5,142.44,56.16950408]
[1741147339890,2.0753,142.53,142.48,56.16950408]
[1741147340086,0.03,142.53,142.5,56.16950408]
[1741147340306,0.03,142.53,142.48,393.6]
[1741147340307,0.03,142.53,142.52,56.16950408]
[1741147340501,0.03,142.53,142.52,137.91166565]
[1741147340713,0.03,142.53,142.52,138.05382722]
[1741147341091,0.03,142.53,142.52,144.78600408]
[1741147341287,0.03,142.53,142.5,56.16950408]
[1741147341527,0.03,142.53,142.5,144.78690408]